bitfinex/quotes_SOLUSD_20241125
["timestamp","ask_amount","ask_price","bid_price","bid_amount"]
[1732493881288,8.57471377,252.22,252.12,8.57471377]
[1732493881891,8.57471377,252.22,252.14,8.57471377]
[1732493882376,8.57471377,252.24,252.14,8.57471377]
[1732493883180,8.57471377,252.3,252.22,8.57471377]
[1732493883492,8.57471377,252.35,252.28,8.57471377]
[1732493883693,15.4539,252.36,252.3,8.57471377]
[1732493883869,8.57471377,252.4,252.32,8.57471377]
[1732493884292,21.5793,252.43,252.22,1.1894]
[1732493884293,8.57471377,252.38,252.3,8.57471377]
[1732493884590,8.57471377,252.4,252.32,8.57471377]
[1732493886186,8.57471377,252.38,252.3,9.76371377]
[1732493887693,8.57471377,252.38,252.3,8.57471377]
[1732493887875,8.57471377,252.34,252.26,8.57471377]
[1732493888201,8.57471377,252.36,252.28,8.57471377]
[1732493888786,21.5793,252.43,252.28,8.57471377]
[1732493888787,8.57471377,252.38,252.28,8.57471377]
[1732493889087,8.57471377,252.38,252.3,8.57471377]
[1732493889893,8.57471377,252.36,252.28,8.57471377]
[1732493890598,8.57471377,252.34,252.26,8.57471377]
[1732493891094,8.57471377,252.36,252.26,8.57471377]
[1732493891323,8.57471377,252.36,252.28,8.57471377]
[1732493891691,8.57471377,252.36,252.28,9.76381377]
[1732493891907,8.57471377,252.4,252.3,8.57471377]
[1732493892918,8.57471377,252.4,252.31,1.189]
[1732493893115,8.57471377,252.4,252.32,8.57471377]
[1732493894312,15.4539,252.43,252.3,8.57471377]
[1732493894313,8.57471377,252.38,252.3,8.57471377]
[1732493894492,8.57471377,252.38,252.28,8.57471377]
[1732493894939,8.57471377,252.38,252.3,8.57471377]
[1732493895615,8.57471377,252.38,252.3,9.76371377]
[1732493896317,8.57471377,252.42,252.34,8.57471377]
[1732493896529,8.57471377,252.44,252.36,8.57471377]
[1732493897444,8.57471377,252.42,252.34,8.57471377]
[1732493897710,8.57471377,252.42,252.35,1.1888]
[1732493897892,8.57471377,252.4,252.32,28.57471377]
[1732493898093,8.57471377,252.38,252.32,20.0]
[1732493898295,21.6531,252.49,252.32,20.0]
[1732493898296,8.57471377,252.4,252.32,29.76361377]
[1732493898506,8.57471377,252.4,252.32,28.57471377]
[1732493899114,8.57471377,252.44,252.34,8.57471377]
[1732493899320,8.57471377,252.44,252.36,8.57471377]
[1732493899626,21.6531,252.49,252.4,8.57471377]
[1732493899627,8.57471377,252.48,252.4,8.57471377]
[1732493899994,8.57471377,252.48,252.39,1.1886]
[1732493900202,8.57471377,252.44,252.36,8.57471377]
[1732493900403,8.57471377,252.42,252.34,8.57471377]
[1732493900603,8.57471377,252.4,252.33,1.1889]
[1732493900808,8.57471377,252.4,252.32,28.57471377]
[1732493901018,8.57471377,252.38,252.29,6.1613]
[1732493901199,8.57471377,252.36,252.29,6.1613]
[1732493902635,8.57471377,252.38,252.3,9.76371377]
[1732493902920,8.57471377,252.38,252.3,1.189]
[1732493903218,23.776884,252.45,252.28,9.76381377]
[1732493903430,8.57471377,252.34,252.25,1.1892]
[1732493903599,8.57471377,252.36,252.27,8.57471377]
[1732493903801,8.57471377,252.36,252.29,8.57471377]
[1732493904422,8.57471377,252.4,252.31,8.57471377]
[1732493904605,6.0378,252.44,252.33,8.57471377]
[1732493904606,8.57471377,252.42,252.33,8.57471377]
[1732493904810,8.57471377,252.42,252.33,9.76361377]
[1732493905805,8.57471377,252.42,252.33,8.57471377]
[1732493906004,8.57471377,252.4,252.33,8.57471377]
[1732493907107,8.57471377,252.44,252.35,8.57471377]
[1732493907306,6.3048,252.5,252.37,8.57471377]
[1732493907307,8.57471377,252.46,252.37,8.57471377]
[1732493907622,8.57471377,252.44,252.37,8.57471377]
[1732493907802,8.57471377,252.44,252.35,8.57471377]
[1732493907999,8.57471377,252.46,252.37,8.57471377]
[1732493909007,8.57471377,252.46,252.37,9.76341377]
[1732493911926,8.57471377,252.42,252.33,8.57471377]
[1732493912113,8.57471377,252.4,252.32,1.1889]
[1732493912308,8.57471377,252.4,252.31,9.76361377]
[1732493913508,8.57471377,252.4,252.33,9.76361377]
[1732493914337,8.57471377,252.4,252.31,9.76361377]
[1732493914833,8.57471377,252.4,252.31,9.76371377]
[1732493915048,8.57471377,252.42,252.33,8.57471377]
[1732493915713,8.57471377,252.44,252.36,8.57471377]
[1732493916115,8.57471377,252.42,252.34,8.57471377]
[1732493916311,8.57471377,252.44,252.34,8.57471377]
[1732493916616,8.57471377,252.44,252.36,8.57471377]
[1732493917939,8.57471377,252.42,252.34,8.57471377]
[1732493918511,8.57471377,252.42,252.32,8.57471377]
[1732493919518,8.57471377,252.42,252.33,1.1889]
[1732493920026,8.57471377,252.42,252.32,8.57471377]
[1732493920430,8.57471377,252.42,252.32,9.76361377]
[1732493920839,8.57471377,252.38,252.3,30.90541377]
[1732493921040,8.57471377,252.38,252.28,8.57471377]
[1732493921547,8.57471377,252.36,252.28,8.57471377]
[1732493921844,8.57471377,252.32,252.23,6.6516]
[1732493922536,8.57471377,252.32,252.24,8.57471377]
[1732493923040,8.57471377,252.36,252.28,8.57471377]
[1732493923828,8.57471377,252.36,252.24,1.1893]
[1732493923829,8.57471377,252.36,252.26,8.57471377]
[1732493924527,8.57471377,252.34,252.26,9.76391377]
[1732493924736,8.57471377,252.34,252.26,8.57471377]
[1732493925426,8.57471377,252.36,252.26,9.76391377]
[1732493925639,8.57471377,252.34,252.26,9.76391377]
[1732493926537,8.57471377,252.34,252.26,8.57471377]
[1732493928338,8.57471377,252.34,252.24,8.57471377]
[1732493929338,8.57471377,252.34,252.25,1.1892]
[1732493929539,8.57471377,252.34,252.26,8.57471377]
[1732493930147,8.57471377,252.36,252.28,8.57471377]
[1732493930445,8.57471377,252.38,252.3,8.57471377]
[1732493931449,8.57471377,252.34,252.27,1.1891]
[1732493931637,8.57471377,252.34,252.24,9.76401377]
[1732493934652,24.36541377,252.32,252.17,12.37054877]
[1732493934826,8.57471377,252.26,252.16,8.57471377]
[1732493935527,8.57471377,252.26,252.18,8.57471377]
[1732493936234,8.57471377,252.26,252.18,9.76431377]
[1732493936541,8.57471377,252.29,252.2,8.57471377]
[1732493937544,15.7907,252.32,252.24,8.57471377]
[1732493937744,8.57471377,252.33,252.24,8.57471377]
[1732493938146,8.57471377,252.35,252.26,8.57471377]
[1732493938752,8.57471377,252.35,252.26,9.76391377]
[1732493939438,8.57471377,252.37,252.28,8.57471377]
[1732493939847,8.57471377,252.35,252.28,8.57471377]
[1732493940941,8.57471377,252.35,252.26,8.57471377]
[1732493942459,8.57471377,252.35,252.26,9.76391377]
[1732493942955,8.57471377,252.33,252.26,8.57471377]
[1732493943134,8.57471377,252.33,252.24,8.57471377]
[1732493944035,8.57471377,252.35,252.26,8.57471377]
[1732493945657,8.57471377,252.35,252.26,9.76391377]
[1732493945841,8.57471377,252.35,252.28,9.76381377]
[1732493946033,8.57471377,252.37,252.28,9.76381377]
[1732493946233,15.8556,252.44,252.28,9.76381377]
[1732493946234,8.57471377,252.41,252.32,8.57471377]
[1732493946430,8.57471377,252.43,252.34,8.57471377]
[1732493946961,6.049,252.49,252.38,8.57471377]
[1732493946962,8.57471377,252.47,252.38,8.57471377]
[1732493947131,8.57471377,252.47,252.31,6.405]
[1732493947132,8.57471377,252.49,252.4,8.57471377]
[1732493947337,8.57471377,252.49,252.42,8.57471377]
[1732493947561,8.57471377,252.51,252.42,8.57471377]
[1732493947859,8.57471377,252.53,252.44,8.57471377]
[1732493948159,8.57471377,252.55,252.48,8.57471377]
[1732493948457,8.57471377,252.57,252.5,8.57471377]
[1732493948956,6.3324,252.68,252.56,8.57471377]
[1732493949255,8.57471377,252.65,252.58,8.57471377]
[1732493949463,8.57471377,252.67,252.59,8.57471377]
[1732493949666,8.57471377,252.66,252.57,8.57471377]
[1732493949859,8.57471377,252.67,252.6,8.57471377]
[1732493950033,10.0,252.81,252.51,0.59372903]
[1732493950034,8.57471377,252.72,252.64,8.57471377]
[1732493950234,8.57471377,252.76,252.68,8.57471377]
[1732493950539,8.57471377,252.75,252.64,20.0]
[1732493950756,8.57471377,252.75,252.67,8.57471377]
[1732493950950,8.57471377,252.73,252.68,20.0]
[1732493951164,8.57471377,252.76,252.69,8.57471377]
[1732493951340,8.57471377,252.76,252.68,20.0]
[1732493951535,8.57471377,252.74,252.68,20.0]
[1732493951753,8.57471377,252.7,252.61,14.63221377]
[1732493951949,15.1704,252.83,252.61,14.63221377]
[1732493951950,8.57471377,252.71,252.64,20.0]
[1732493952152,8.57471377,252.69,252.64,20.0]
[1732493952661,8.57471377,252.71,252.64,20.0]
[1732493952866,40.976534,252.83,252.65,8.57471377]
[1732493952867,8.57471377,252.73,252.65,8.57471377]
[1732493953166,8.57471377,252.75,252.67,8.57471377]
[1732493954259,8.57471377,252.77,252.69,8.57471377]
[1732493954561,8.57471377,252.79,252.71,8.57471377]
[1732493954757,8.57471377,252.77,252.69,8.57471377]
[1732493954978,8.57471377,252.81,252.73,8.57471377]
[1732493955258,8.57471377,252.84,252.75,8.57471377]
[1732493955762,8.57471377,252.82,252.75,8.57471377]
[1732493956146,8.57471377,252.8,252.73,8.57471377]
[1732493956457,8.57471377,252.78,252.69,8.57471377]
[1732493956660,8.57471377,252.78,252.71,8.57471377]
[1732493958166,8.57471377,252.8,252.73,8.57471377]
[1732493958652,8.57471377,252.82,252.73,8.57471377]
[1732493959967,8.57471377,252.82,252.75,8.57471377]
[1732493960165,8.57471377,252.82,252.73,8.57471377]
[1732493960347,6.3204,252.89,252.73,8.57471377]
[1732493960551,8.57471377,252.82,252.73,8.57471377]
[1732493961165,8.57471377,252.82,252.73,32.32471377]
[1732493961461,8.57471377,252.84,252.77,8.57471377]
[1732493961656,8.57471377,252.82,252.73,8.57471377]
[1732493962058,8.57471377,252.8,252.71,8.57471377]
[1732493962244,8.57471377,252.78,252.71,8.57471377]
[1732493964354,8.57471377,252.8,252.73,8.57471377]
[1732493965480,8.57471377,252.8,252.71,8.57471377]
[1732493965654,8.57471377,252.78,252.72,20.0]
[1732493965850,8.57471377,252.74,252.65,8.57471377]
[1732493966051,8.57471377,252.74,252.68,20.0]
[1732493967665,8.57471377,252.85,252.61,6.0575]
[1732493967666,8.57471377,252.78,252.69,8.57471377]
[1732493969559,8.57471377,252.78,252.69,9.76191377]
[1732493970573,8.57471377,252.8,252.72,8.57471377]
[1732493971079,8.57471377,252.84,252.75,8.57471377]
[1732493971252,8.57471377,252.84,252.77,8.57471377]
[1732493971448,8.57471377,252.86,252.77,8.57471377]
[1732493971956,8.57471377,252.84,252.77,8.57471377]
[1732493972163,8.57471377,252.82,252.75,8.57471377]
[1732493972351,8.57471377,252.82,252.73,28.57471377]
[1732493972761,8.57471377,252.82,252.75,8.57471377]
[1732493972956,8.57471377,252.84,252.77,8.57471377]
[1732493973275,8.57471377,252.82,252.75,8.57471377]
[1732493973658,8.57471377,252.86,252.77,8.57471377]
[1732493973856,8.57471377,252.86,252.79,8.57471377]
[1732493974678,8.57471377,252.86,252.77,8.57471377]
[1732493974869,8.57471377,252.84,252.77,8.57471377]
[1732493975261,8.57471377,252.84,252.77,9.76151377]
[1732493975654,15.8929,252.91,252.77,9.76151377]
[1732493975860,8.57471377,252.86,252.77,9.76151377]
[1732493976255,8.57471377,252.84,252.77,9.76151377]
[1732493976755,8.57471377,252.88,252.81,8.57471377]
[1732493976959,8.57471377,252.91,252.83,8.57471377]
[1732493977675,8.57471377,252.9,252.82,8.57471377]
[1732493978063,6.4595,252.95,252.82,1.1866]
[1732493978064,8.57471377,252.88,252.82,1.1866]
[1732493978366,8.57471377,252.91,252.82,8.57471377]
[1732493979754,8.57471377,252.91,252.82,9.76121377]
[1732493985984,8.57471377,252.95,252.87,8.57471377]
[1732493986157,8.57471377,252.93,252.87,8.57471377]
[1732493986360,8.57471377,252.93,252.85,8.57471377]
[1732493986986,8.57471377,252.93,252.85,9.76111377]
[1732493987777,8.57471377,252.91,252.85,8.57471377]
[1732493988164,45.1153,252.97,252.81,8.57471377]
[1732493988165,8.57471377,252.89,252.81,8.57471377]
[1732493988783,8.57471377,252.89,252.82,1.1866]
[1732493988978,8.57471377,252.89,252.81,8.57471377]
[1732493989568,8.57471377,252.9,252.83,8.57471377]
[1732493991262,8.57471377,252.86,252.72,23.66]
[1732493991467,8.57471377,252.83,252.75,28.57471377]
[1732493991668,8.57471377,252.83,252.75,8.57471377]
[1732493992369,30.0,252.97,252.64,1.1874]
[1732493992370,8.57471377,252.77,252.64,1.1874]
[1732493992679,8.57471377,252.77,252.7,8.57471377]
[1732493992975,143.42649747,253.02,252.69,1.1872]
[1732493992976,8.57471377,252.81,252.72,8.57471377]
[1732493993191,8.57471377,252.83,252.76,8.57471377]
[1732493994391,8.57471377,252.83,252.74,9.76161377]
[1732493994594,8.57471377,252.81,252.77,20.0]
[1732493995089,8.57471377,252.83,252.77,20.0]
[1732493995284,20.0,252.93,252.77,20.0]
[1732493995496,8.57471377,252.86,252.77,28.57471377]
[1732493995673,8.57471377,252.86,252.78,1.1868]
[1732493995986,8.57471377,252.84,252.78,1.1868]
[1732493998384,8.57471377,252.84,252.78,21.1868]
[1732493998764,8.57471377,252.82,252.78,20.0]
[1732493998981,8.57471377,252.82,252.76,20.0]
[1732494000176,8.57471377,252.8,252.73,1.1869]
[1732494000487,8.57471377,252.76,252.69,9.76191377]
[1732494000692,8.57471377,252.8,252.73,8.57471377]
[1732494001185,8.57471377,252.78,252.69,1.1872]
[1732494001694,8.57471377,252.78,252.73,20.0]
[1732494001987,8.57471377,252.8,252.73,21.187]
[1732494002286,8.57471377,252.8,252.73,1.187]
[1732494002598,8.57471377,252.8,252.72,8.57471377]
[1732494002894,8.57471377,252.78,252.72,20.0]
[1732494003482,8.57471377,252.82,252.73,8.57471377]
[1732494003678,8.57471377,252.82,252.74,1.1869]
[1732494003992,8.57471377,252.8,252.74,21.1869]
[1732494004178,8.57471377,252.78,252.74,21.1869]
[1732494004377,8.57471377,252.78,252.74,20.0]
[1732494004582,8.57471377,252.76,252.67,8.57471377]
[1732494004787,8.57471377,252.74,252.65,9.76211377]
[1732494004976,8.57471377,252.72,252.65,1.1874]
[1732494005175,8.57471377,252.74,252.65,9.76211377]
[1732494005501,8.57471377,252.76,252.67,8.57471377]
[1732494005793,8.57471377,252.78,252.7,1.1871]
[1732494006170,23.776884,252.92,252.73,8.57471377]
[1732494006171,8.57471377,252.82,252.73,8.57471377]
[1732494006371,8.57471377,252.8,252.71,8.57471377]
[1732494006785,8.57471377,252.82,252.73,8.57471377]
[1732494008000,8.57471377,252.82,252.74,1.1869]
[1732494008497,8.57471377,252.84,252.78,20.0]
[1732494008699,8.57471377,252.82,252.74,1.1869]
[1732494008889,8.57471377,252.82,252.76,20.0]
[1732494009299,8.57471377,252.8,252.73,1.187]
[1732494009598,8.57471377,252.8,252.74,20.0]
[1732494010885,8.57471377,252.8,252.74,21.1869]
[1732494011093,8.57471377,252.83,252.75,8.57471377]
[1732494011483,8.57471377,252.85,252.78,20.0]
[1732494011684,8.57471377,252.83,252.78,20.0]
[1732494012097,8.57471377,252.83,252.76,21.1868]
[1732494012817,8.57471377,252.85,252.77,8.57471377]
[1732494013185,8.57471377,252.85,252.76,1.1868]
[1732494013186,8.57471377,252.83,252.76,21.1868]
[1732494013804,8.57471377,252.83,252.78,20.0]
[1732494014300,8.57471377,252.85,252.79,1.1867]
[1732494014480,8.57471377,252.85,252.8,20.0]
[1732494014883,8.57471377,252.83,252.78,20.0]
[1732494015199,8.57471377,252.83,252.78,21.1867]
[1732494016104,30.0,252.97,252.78,21.1867]
[1732494016105,8.57471377,252.85,252.78,21.1867]
[1732494016807,8.57471377,252.83,252.78,20.0]
[1732494017104,8.57471377,252.83,252.76,21.1868]
[1732494018098,8.57471377,252.8,252.73,20.0]
[1732494018411,8.57471377,252.82,252.72,8.57471377]
[1732494019291,8.57471377,252.82,252.73,1.187]
[1732494019496,8.57471377,252.82,252.74,8.57471377]
[1732494020392,8.57471377,252.84,252.75,1.1869]
[1732494020785,8.57471377,252.86,252.77,28.57471377]
[1732494022386,8.57471377,252.86,252.78,1.5824]
[1732494023596,8.57471377,252.9,252.84,20.0]
[1732494024688,8.57471377,252.86,252.8,1.5822]
[1732494024897,8.57471377,252.86,252.8,21.5822]
[1732494025505,8.57471377,252.86,252.8,20.0]
[1732494027402,8.57471377,252.88,252.8,20.0]
[1732494029626,8.57471377,252.88,252.79,1.5823]
[1732494030001,8.57471377,252.86,252.77,20.0]
[1732494030198,8.57471377,252.84,252.78,20.0]
[1732494030395,8.57471377,252.82,252.73,14.99141377]
[1732494030596,8.57471377,252.8,252.71,12.37054877]
[1732494030820,8.57471377,252.8,252.71,1.5828]
[1732494031512,8.57471377,252.76,252.69,12.37054877]
[1732494031697,8.57471377,252.76,252.68,12.37054877]
[1732494031902,16.4373,252.82,252.65,8.57471377]
[1732494031903,8.57471377,252.74,252.65,8.57471377]
[1732494032397,8.57471377,252.72,252.63,20.94526254]
[1732494032708,8.57471377,252.7,252.61,8.57471377]
[1732494033406,8.57471377,252.7,252.58,12.37054877]
[1732494033407,8.57471377,252.7,252.58,13.95414877]
[1732494033613,8.57471377,252.68,252.58,8.57471377]
[1732494033797,8.57471377,252.66,252.58,8.57471377]
[1732494034216,8.57471377,252.62,252.55,12.37054877]
[1732494034517,8.57471377,252.62,252.53,24.74109755]
[1732494034518,8.57471377,252.62,252.53,8.57471377]
[1732494034722,8.57471377,252.6,252.51,8.57471377]
[1732494034906,8.57471377,252.56,252.49,12.37054877]
[1732494035105,8.57471377,252.56,252.47,8.57471377]
[1732494035418,8.57471377,252.58,252.49,8.57471377]
[1732494035623,8.57471377,252.58,252.51,8.57471377]
[1732494035914,8.57471377,252.62,252.53,8.57471377]
[1732494036503,8.57471377,252.6,252.53,8.57471377]
[1732494037100,8.57471377,252.64,252.57,8.57471377]
[1732494037413,8.57471377,252.66,252.57,8.57471377]
[1732494038828,8.57471377,252.64,252.52,1.5839]
[1732494039006,8.57471377,252.64,252.47,29.88021963]
[1732494039007,8.57471377,252.62,252.53,8.57471377]
[1732494039220,8.57471377,252.6,252.53,8.57471377]
[1732494039718,8.57471377,252.62,252.53,8.57471377]
[1732494041817,8.57471377,252.59,252.5,8.57471377]
[1732494042014,8.57471377,252.59,252.53,20.0]
[1732494042209,8.57471377,252.57,252.53,20.0]
[1732494043505,8.57471377,252.61,252.53,20.0]
[1732494045046,8.57471377,252.65,252.56,8.57471377]
[1732494045528,8.57471377,252.67,252.6,8.57471377]
[1732494045711,8.57471377,252.67,252.5,8.91046126]
[1732494045712,8.57471377,252.67,252.58,8.57471377]
[1732494045917,8.57471377,252.65,252.59,20.0]
[1732494046217,8.57471377,252.65,252.56,8.57471377]
[1732494046607,8.57471377,252.63,252.56,8.57471377]
[1732494047326,8.57471377,252.65,252.56,8.57471377]
[1732494051331,23.776884,252.69,252.52,8.57471377]
[1732494051332,8.57471377,252.61,252.52,8.57471377]
[1732494051638,8.57471377,252.61,252.55,20.0]
[1732494052018,8.57471377,252.61,252.52,8.57471377]
[1732494052221,23.776884,252.69,252.46,5.9414]
[1732494052222,8.57471377,252.59,252.5,10.95081377]
[1732494052413,8.57471377,252.59,252.53,20.0]
[1732494052614,8.57471377,252.61,252.53,20.0]
[1732494053342,23.776884,252.69,252.53,20.0]
[1732494053343,8.57471377,252.59,252.53,20.0]
[1732494054421,8.57471377,252.57,252.48,8.57471377]
[1732494055013,8.57471377,252.57,252.5,8.57471377]
[1732494055421,8.57471377,252.51,252.42,8.9375]
[1732494055620,8.57471377,252.51,252.36,15.5896]
[1732494055621,8.57471377,252.51,252.4,8.57471377]
[1732494055811,8.57471377,252.49,252.4,8.57471377]
[1732494056015,8.57471377,252.47,252.38,10.95191377]
[1732494057038,8.57471377,252.51,252.42,8.57471377]
[1732494057841,16.6537,252.56,252.39,2.3772]
[1732494058045,23.776884,252.54,252.46,8.57471377]
[1732494060349,8.57471377,252.53,252.44,8.57471377]
[1732494060840,8.57471377,252.51,252.42,8.57471377]
[1732494061040,8.57471377,252.49,252.4,8.57471377]
[1732494061216,8.57471377,252.49,252.43,20.0]
[1732494061421,8.57471377,252.51,252.43,20.0]
[1732494061648,32.35159777,252.55,252.46,8.57471377]
[1732494061943,32.35159777,252.55,252.43,20.0]
[1732494061944,32.35159777,252.55,252.48,8.57471377]
[1732494062119,32.35159777,252.55,252.46,8.57471377]
[1732494063039,8.57471377,252.55,252.48,8.57471377]
[1732494063242,8.57471377,252.61,252.52,8.57471377]
[1732494063424,8.57471377,252.61,252.46,8.57471377]
[1732494063425,16.6537,252.62,252.54,8.57471377]
[1732494064242,16.6537,252.62,252.56,8.57471377]
[1732494064616,8.57471377,252.65,252.56,8.57471377]
[1732494064831,8.57471377,252.63,252.54,8.57471377]
[1732494065631,26.6537,252.71,252.58,8.57471377]
[1732494065632,8.57471377,252.65,252.58,8.57471377]
[1732494065836,25.22841377,252.71,252.62,8.57471377]
[1732494066023,25.22841377,252.71,252.64,8.57471377]
[1732494066219,16.6537,252.71,252.64,8.57471377]
[1732494066421,8.57471377,252.75,252.66,8.57471377]
[1732494067047,23.87211377,252.77,252.7,8.57471377]
[1732494067255,15.2974,252.77,252.72,8.57471377]
[1732494067452,8.57471377,252.73,252.64,20.0]
[1732494067739,8.57471377,252.71,252.64,20.0]
[1732494067944,8.57471377,252.69,252.61,8.57471377]
[1732494068321,8.57471377,252.67,252.59,8.57471377]
[1732494068521,8.57471377,252.65,252.6,20.0]
[1732494068744,8.57471377,252.65,252.57,8.57471377]
[1732494068925,8.57471377,252.63,252.57,20.0]
[1732494069121,15.20601377,252.72,252.59,8.57471377]
[1732494069122,8.57471377,252.67,252.59,8.57471377]
[1732494069328,8.57471377,252.69,252.61,8.57471377]
[1732494070433,13.65506768,252.72,252.64,13.65506768]
[1732494071148,13.65506768,252.7,252.62,13.65506768]
[1732494071850,13.65506768,252.72,252.62,13.65506768]
[1732494072229,13.65506768,252.7,252.62,13.65506768]
[1732494073128,15.2974,252.77,252.66,13.65506768]
[1732494073129,13.65506768,252.74,252.66,13.65506768]
[1732494073532,13.65506768,252.74,252.64,13.65506768]
[1732494074252,13.65506768,252.72,252.64,13.65506768]
[1732494074829,13.65506768,252.74,252.67,20.0]
[1732494075077,15.2974,252.77,252.7,13.65506768]
[1732494076045,13.65506768,252.8,252.7,13.65506768]
[1732494076231,13.65506768,252.82,252.72,13.65506768]
[1732494077047,13.65506768,252.79,252.7,13.65506768]
[1732494077254,13.65506768,252.79,252.63,2.375]
[1732494077255,13.65506768,252.77,252.68,13.65506768]
[1732494077431,13.65506768,252.77,252.7,13.65506768]
[1732494077632,13.65506768,252.79,252.7,13.65506768]
[1732494078152,13.65506768,252.79,252.7,16.02936768]
[1732494078324,13.65506768,252.81,252.72,13.65506768]
[1732494078858,13.65506768,252.81,252.74,13.65506768]
[1732494079164,13.65506768,252.83,252.74,13.65506768]
[1732494079842,13.65506768,252.81,252.72,13.65506768]
[1732494080048,13.65506768,252.81,252.75,20.0]
[1732494080251,13.65506768,252.77,252.71,20.0]
[1732494080839,13.65506768,252.77,252.68,13.65506768]
[1732494081239,13.65506768,252.77,252.71,20.0]
[1732494081549,16.4079,252.84,252.58,2.3754]
[1732494081550,13.65506768,252.73,252.58,2.3754]
[1732494081742,13.65506768,252.73,252.63,13.65506768]
[1732494082147,13.65506768,252.73,252.65,13.65506768]
[1732494082360,13.65506768,252.75,252.65,13.65506768]
[1732494082668,13.65506768,252.71,252.63,13.65506768]
[1732494082836,13.65506768,252.69,252.61,13.65506768]
[1732494083161,10.0,252.8,252.59,13.65506768]
[1732494083162,13.65506768,252.67,252.59,13.65506768]
[1732494083369,13.65506768,252.67,252.57,20.17176768]
[1732494083661,13.65506768,252.63,252.53,2.3759]
[1732494083862,15.4619,252.71,252.51,6.5167]
[1732494083863,13.65506768,252.61,252.51,20.17176768]
[1732494084041,13.65506768,252.58,252.49,16.03126768]
[1732494084366,13.65506768,252.54,252.45,19.80746768]
[1732494084662,13.65506768,252.54,252.45,13.65506768]
[1732494085339,13.65506768,252.5,252.41,13.65506768]
[1732494085539,13.65506768,252.52,252.43,13.65506768]
[1732494085975,13.65506768,252.5,252.41,13.65506768]
[1732494086261,13.65506768,252.51,252.42,13.65506768]
[1732494086777,13.65506768,252.45,252.36,2.3774]
[1732494087263,13.65506768,252.43,252.33,13.65506768]
[1732494087438,13.65506768,252.41,252.33,13.65506768]
[1732494087764,13.65506768,252.39,252.3,2.378]
[1732494088264,13.65506768,252.39,252.31,13.65506768]
[1732494088471,13.65506768,252.39,252.29,13.65506768]
[1732494089151,10.0,252.49,252.25,2.3785]
[1732494089152,13.65506768,252.41,252.31,13.65506768]
[1732494089343,13.65506768,252.43,252.35,13.65506768]
[1732494090044,33.776884,252.55,252.32,2.3779]
[1732494090045,13.65506768,252.45,252.37,13.65506768]
[1732494090744,13.65506768,252.45,252.35,13.65506768]
[1732494090955,33.776884,252.55,252.36,20.0]
[1732494090956,13.65506768,252.41,252.36,20.0]
[1732494091145,13.65506768,252.46,252.31,13.65506768]
[1732494091146,13.65506768,252.39,252.34,20.0]
[1732494091540,13.65506768,252.39,252.31,16.03296768]
[1732494091742,13.65506768,252.41,252.34,20.0]
[1732494092141,13.65506768,252.41,252.31,16.03296768]
[1732494092350,13.65506768,252.41,252.33,13.65506768]
[1732494094249,13.65506768,252.47,252.37,13.65506768]
[1732494095076,25.7112,252.56,252.39,13.65506768]
[1732494095077,13.65506768,252.49,252.39,13.65506768]
[1732494095286,13.65506768,252.47,252.39,13.65506768]
[1732494095874,13.65506768,252.44,252.25,2.3785]
[1732494096074,13.65506768,252.36,252.27,13.65506768]
[1732494096372,13.65506768,252.34,252.25,13.65506768]
[1732494097357,13.65506768,252.32,252.23,13.65506768]
[1732494098064,13.65506768,252.34,252.25,13.65506768]
[1732494099072,13.65506768,252.34,252.25,16.03356768]
[1732494099760,13.65506768,252.32,252.23,13.65506768]
[1732494100140,13.65506768,252.3,252.21,13.65506768]
[1732494100346,13.65506768,252.3,252.21,16.03396768]
[1732494100959,13.65506768,252.28,252.19,13.65506768]
[1732494101161,13.65506768,252.3,252.21,13.65506768]
[1732494102355,13.65506768,252.28,252.19,33.65506768]
[1732494103172,13.65506768,252.3,252.21,13.65506768]
[1732494104583,22.7686,252.32,252.23,13.65506768]
[1732494104584,36.42366768,252.32,252.23,13.65506768]
[1732494105105,13.65506768,252.36,252.27,13.65506768]
[1732494105661,29.95026768,252.38,252.3,13.65506768]
[1732494106453,16.2952,252.38,252.28,13.65506768]
[1732494106658,13.65506768,252.36,252.29,20.0]
[1732494107161,13.65506768,252.36,252.28,13.65506768]
[1732494107689,13.65506768,252.36,252.28,16.03326768]
[1732494108864,13.65506768,252.36,252.26,13.65506768]
[1732494109068,13.65506768,252.36,252.29,20.0]
[1732494109563,29.95026768,252.38,252.29,20.0]
[1732494110465,29.95026768,252.38,252.3,13.65506768]
[1732494110669,29.95026768,252.38,252.3,16.03316768]
[1732494111167,29.95026768,252.38,252.3,13.65506768]
[1732494111675,29.95026768,252.38,252.29,20.0]
[1732494111676,13.65506768,252.36,252.29,20.0]
[1732494112263,13.65506768,252.34,252.24,13.65506768]
[1732494112459,13.65506768,252.32,252.22,13.65506768]
[1732494112659,16.2952,252.38,252.2,13.65506768]